fUSD/lending_fUSD_20260115
["ID","MTS","AMOUNT","RATE_DAILY","PERIOD"]
[402092089,1768516256159,-656.46,0.00035616,10]
[402092090,1768516256168,-500.0,0.00035616,10]
[402092091,1768516256177,-500.0,0.00035616,120]
[402092092,1768516256186,-1109.33,0.00035616,10]
[402092093,1768516256195,-151.0,0.00035616,31]
[402092094,1768516256204,-500.0,0.00035616,10]
[402092095,1768516256213,-500.0,0.00035616,10]
[402092096,1768516256222,-674.74,0.00035616,10]
[402092097,1768516256233,-539.78,0.00035616,10]
[402092098,1768516256244,-500.0,0.00035616,10]
[402092099,1768516256253,-2391.04,0.00035616,10]
[402092100,1768516256263,-500.0,0.00035616,10]
[402092101,1768516256272,-646.8,0.00035616,10]
[402092102,1768516256281,-1482.29,0.00035616,10]
[402092103,1768516256291,-500.0,0.00035616,10]
[402092104,1768516256300,-1886.82,0.00035616,10]
[402092106,1768516256552,-518.83749218,0.00035616,10]
[402092107,1768516256561,-500.0,0.00035616,10]
[402092108,1768516256571,-751.15,0.00035616,10]
[402092109,1768516256581,-1519.92,0.00035616,10]
[402092110,1768516256590,-500.0,0.00035616,10]
[402092111,1768516256600,-1039.27,0.00035616,10]
[402092112,1768516256609,-500.0,0.00035616,10]
[402092113,1768516256619,-500.0,0.00035616,10]
[402092114,1768516256628,-500.0,0.00035616,10]
[402092115,1768516256637,-984.36,0.00035616,10]
[402092116,1768516256646,-1396.27,0.00035616,10]
[402092117,1768516256655,-961.16,0.00035616,10]
[402092118,1768516256664,-702.48,0.00035616,10]
[402092119,1768516256673,-917.1,0.00035616,10]
[402092120,1768516256682,-815.92,0.00035616,10]
[402092121,1768516256691,-500.0,0.00035616,10]
[402092122,1768516256700,-500.0,0.00035616,10]
[402092123,1768516256710,-601.52,0.00035616,10]
[402092124,1768516256719,-897.67,0.00035616,10]
[402092125,1768516256728,-500.0,0.00035616,10]
[402092126,1768516256737,-209.52601325,0.00035616,10]
[402092127,1768516256747,-1226.09,0.00035616,10]
[402092128,1768516256756,-654.29,0.00035616,10]
[402092129,1768516256765,-4971.19,0.00035616,10]
[402092130,1768516256774,-2892.37,0.00035616,10]
[402092131,1768516256784,-500.0,0.00035616,10]
[402092132,1768516256793,-646.16,0.00035616,10]
[402092133,1768516256803,-500.0,0.00035616,10]
[402092134,1768516256812,-1219.9,0.00035616,10]
[402092135,1768516256823,-500.0,0.00035616,10]
[402092136,1768516256832,-2413.27,0.00035616,10]
[402092137,1768516256841,-872.93,0.00035616,10]
[402092138,1768516256850,-557.04,0.00035616,10]
[402092139,1768516256860,-876.15,0.00035616,10]
[402092140,1768516256870,-500.0,0.00035616,10]
[402092141,1768516256879,-500.0,0.00035616,10]
[402092142,1768516256888,-500.0,0.00035616,10]
[402092143,1768516256898,-500.0,0.00035616,10]
[402092144,1768516256908,-500.0,0.00035616,10]
[402092145,1768516256918,-9743.76,0.00035616,10]
[402092146,1768516256927,-822.7,0.00035616,10]
[402092147,1768516256937,-1313.15,0.00035616,10]
[402092148,1768516256946,-500.0,0.00035616,10]
[402092149,1768516256957,-864.13,0.00035616,10]
[402092150,1768516256966,-500.0,0.00035616,10]
[402092151,1768516256976,-500.0,0.00035616,10]
[402092152,1768516256986,-1445.46,0.00035616,10]
[402092153,1768516256995,-1031.5,0.00035616,10]
[402092154,1768516257004,-2142.55,0.00035616,10]
[402092155,1768516257014,-983.16,0.00035616,10]
[402092156,1768516257023,-1254.81,0.00035616,10]
[402092157,1768516257032,-1086.97,0.00035616,10]
[402092158,1768516257042,-500.0,0.00035616,10]
[402092159,1768516257051,-500.0,0.00035616,10]
[402092160,1768516257061,-500.0,0.00035616,10]
[402092161,1768516257071,-500.0,0.00035616,10]
[402092162,1768516257080,-1030.83,0.00035616,10]
[402092163,1768516257090,-1010.69,0.00035616,10]
[402092164,1768516257101,-1345.9,0.00035616,10]
[402092165,1768516257111,-402.98381529,0.00035616,10]
[402092166,1768516257120,-624.65,0.00035616,10]
[402092167,1768516257130,-2626.96,0.00035616,10]
[402092168,1768516257139,-500.0,0.00035616,10]
[402092169,1768516257148,-698.78,0.00035616,10]
[402092170,1768516257158,-500.0,0.00035616,10]
[402092171,1768516257167,-1953.43,0.00035616,10]
[402092172,1768516257177,-500.0,0.00035616,10]
[402092173,1768516257186,-1040.83,0.00035616,10]
[402092174,1768516257196,-757.77,0.00035616,10]
[402092175,1768516257205,-1302.69,0.00035616,10]
[402092176,1768516257215,-2614.12,0.00035616,10]
[402092177,1768516257224,-908.12,0.00035616,10]
[402092178,1768516257233,-500.0,0.00035616,10]
[402092179,1768516257242,-500.0,0.00035616,10]
[402092180,1768516257251,-500.0,0.00035616,10]
[402092181,1768516257260,-526.41,0.00035616,10]
[402092182,1768516257270,-500.0,0.00035616,10]
[402092183,1768516257279,-500.0,0.00035616,10]
[402092184,1768516257288,-728.71,0.00035616,10]
[402092185,1768516257297,-1179.36,0.00035616,10]
[402092186,1768516257307,-1044.7,0.00035616,10]
[402092187,1768516257317,-3431.13,0.00035616,10]
[402092188,1768516257328,-500.0,0.00035616,10]
[402092189,1768516257337,-670.29,0.00035616,10]
[402092190,1768516257346,-500.0,0.00035616,10]
[402092191,1768516257356,-500.0,0.00035616,10]
[402092192,1768516257366,-522.5985824,0.00035616,10]
[402092193,1768516257375,-500.0,0.00035616,10]
[402092194,1768516257385,-657.34,0.00035616,10]
[402092195,1768516257395,-945.82,0.00035616,10]
[402092196,1768516257405,-826.63,0.00035616,10]
[402092197,1768516257414,-693.96,0.00035616,10]
[402092198,1768516257423,-500.0,0.00035616,10]
[402092199,1768516257433,-790.04,0.00035616,10]
[402092200,1768516257442,-500.0,0.00035616,10]
[402092201,1768516257451,-567.09155482,0.00035616,10]
[402092202,1768516257460,-724.31,0.00035616,10]
[402092203,1768516257469,-500.0,0.00035616,10]
[402092204,1768516257480,-320.15552325,0.00035616,10]
[402092205,1768516257490,-500.0,0.00035616,10]
[402092206,1768516257500,-500.0,0.00035616,10]
[402092207,1768516257509,-500.0,0.00035616,10]
[402092208,1768516257519,-1073.47,0.00035616,10]
[402092209,1768516257529,-222.487597,0.00035616,7]
[402092210,1768516257539,-222.487597,0.00035616,7]
[402092211,1768516257548,-500.0,0.00035616,10]
[402092212,1768516257558,-3101.64,0.00035616,10]
[402092213,1768516257569,-222.487597,0.00035616,7]
[402092214,1768516257578,-222.487597,0.00035616,7]
[402092215,1768516257588,-1920.06,0.00035616,10]
[402092216,1768516257597,-504.98729009,0.00035616,10]
[402092217,1768516257606,-500.0,0.00035616,10]
[402092218,1768516257616,-222.487597,0.00035616,7]
[402092219,1768516257626,-222.487597,0.00035616,7]
[402092220,1768516257636,-1094.18,0.00035616,10]
[402092221,1768516257646,-500.0,0.00035616,10]
[402092222,1768516257656,-500.0,0.00035616,10]
[402092223,1768516257667,-222.487597,0.00035616,7]
[402092224,1768516257676,-1902.25,0.00035616,10]
[402092225,1768516257685,-1027.35,0.00035616,10]
[402092226,1768516257695,-500.0,0.00035616,10]
[402092227,1768516257708,-222.487597,0.00035616,7]
[402092228,1768516257719,-500.0,0.00035616,10]
[402092229,1768516257728,-500.0,0.00035616,10]
[402092230,1768516257742,-500.0,0.00035616,10]
[402092231,1768516257752,-500.0,0.00035616,10]
[402092232,1768516257761,-1697.09,0.00035616,10]
[402092233,1768516257771,-500.0,0.00035616,10]
[402092234,1768516257780,-626.29,0.00035616,10]
[402092235,1768516257790,-500.0,0.00035616,10]
[402092236,1768516257799,-1903.81,0.00035616,10]
[402092237,1768516257808,-500.0,0.00035616,10]
[402092238,1768516257818,-1827.96,0.00035616,10]
[402092239,1768516257827,-500.0,0.00035616,10]
[402092240,1768516257836,-151.0,0.00035616,31]
[402092241,1768516257846,-1297.84,0.00035616,10]
[402092242,1768516257855,-728.36,0.00035616,10]
[402092243,1768516257864,-500.0,0.00035616,10]
[402092244,1768516257873,-500.0,0.00035616,10]
[402092245,1768516257883,-2283.02,0.00035616,10]
[402092246,1768516257892,-576.88,0.00035616,10]
[402092247,1768516257901,-500.0,0.00035616,10]
[402092248,1768516257910,-500.0,0.00035616,10]
[402092249,1768516257920,-722.08,0.00035616,10]
[402092250,1768516257929,-500.0,0.00035616,10]
[402092251,1768516257939,-500.0,0.00035616,10]
[402092252,1768516257948,-500.0,0.00035616,10]
[402092253,1768516257957,-500.0,0.00035616,10]
[402092254,1768516257967,-500.0,0.00035616,10]
[402092255,1768516257976,-584.27,0.00035616,10]
[402092256,1768516257985,-500.0,0.00035616,10]
[402092257,1768516257995,-694.93,0.00035616,10]
[402092258,1768516258004,-500.0,0.00035616,10]
[402092259,1768516258013,-1019.24,0.00035616,10]
[402092260,1768516258023,-1152.19,0.00035616,10]
[402092261,1768516258032,-500.0,0.00035616,10]
[402092262,1768516258041,-2173.57,0.00035616,10]
[402092263,1768516258051,-500.0,0.00035616,10]
[402092264,1768516258060,-500.0,0.00035616,10]
[402092265,1768516258069,-772.06,0.00035616,10]
[402092266,1768516258078,-636.76,0.00035616,10]
[402092267,1768516258087,-500.0,0.00035616,10]
[402092268,1768516258096,-500.0,0.00035616,10]
[402092269,1768516258105,-956.46,0.00035616,10]
[402092270,1768516258115,-500.0,0.00035616,10]
[402092271,1768516258124,-500.0,0.00035616,10]
[402092272,1768516258133,-500.0,0.00035616,10]
[402092273,1768516258142,-1397.63,0.00035616,10]
[402092274,1768516258152,-819.76,0.00035616,10]
[402092275,1768516258160,-500.0,0.00035616,10]
[402092276,1768516258170,-500.0,0.00035616,10]
[402092277,1768516258180,-836.87,0.00035616,10]
[402092278,1768516258189,-1942.46,0.00035616,10]
[402092279,1768516258198,-500.0,0.00035616,10]
[402092280,1768516258208,-1182.26,0.00035616,10]
[402092281,1768516258217,-500.0,0.00035616,10]
[402092282,1768516258227,-774.05,0.00035616,10]
[402092283,1768516258236,-500.0,0.00035616,10]
[402092284,1768516258245,-535.19,0.00035616,10]
[402092285,1768516258254,-500.0,0.00035616,10]
[402092286,1768516258264,-500.0,0.00035616,10]
[402092287,1768516258273,-1478.73,0.00035616,10]
[402092288,1768516258283,-500.0,0.00035616,10]
[402092289,1768516258292,-500.0,0.00035616,10]
[402092290,1768516258301,-474.93076845,0.00035616,10]
[402092291,1768516258311,-500.0,0.00035616,10]
[402092292,1768516258323,-1748.33,0.00035616,10]
[402092293,1768516258335,-3067.68,0.00035616,10]
[402092294,1768516258344,-1519.56,0.00035616,10]
[402092295,1768516258353,-797.75,0.00035616,10]
[402092296,1768516258365,-500.0,0.00035616,10]
[402092297,1768516258375,-1056.34,0.00035616,10]
[402092298,1768516258386,-500.0,0.00035616,10]
[402092299,1768516258397,-500.0,0.00035616,10]
[402092300,1768516258406,-500.0,0.00035616,10]
[402092301,1768516258418,-500.0,0.00035616,10]
[402092302,1768516258427,-500.0,0.00035616,10]
[402092303,1768516258436,-503.55,0.00035616,10]
[402092304,1768516258445,-1807.32,0.00035616,10]
[402092305,1768516258454,-500.0,0.00035616,5]
[402092306,1768516258463,-519.47733112,0.00035616,10]
[402092307,1768516258472,-640.76,0.00035616,10]
[402092308,1768516258483,-500.0,0.00035616,10]
[402092309,1768516258493,-500.0,0.00035616,10]
[402092310,1768516258503,-745.51,0.00035616,10]
[402092311,1768516258514,-1026.12,0.00035616,10]
[402092312,1768516258523,-1313.53,0.00035616,10]
[402092313,1768516258534,-1787.71,0.00035616,10]
[402092314,1768516258544,-500.0,0.00035616,10]
[402092315,1768516258554,-500.0,0.00035616,10]
[402092316,1768516258563,-2000.51,0.00035616,10]
[402092317,1768516258574,-1078.12,0.00035616,10]
[402092318,1768516258584,-1999.0,0.00035616,120]
[402092319,1768516258595,-1161.03,0.00035616,10]
[402092320,1768516258605,-500.0,0.00035616,10]
[402092321,1768516258617,-500.0,0.00035616,10]
[402092322,1768516258627,-500.0,0.00035616,2]
[402092323,1768516258635,-635.48,0.00035616,10]
[402092324,1768516258645,-166.39922835,0.00035616,10]
[402092325,1768516258654,-876.92,0.00035616,10]
[402092326,1768516258663,-561.5,0.00035616,10]
[402092327,1768516258672,-500.0,0.00035616,10]
[402092328,1768516258682,-757.11,0.00035616,10]
[402092329,1768516258691,-500.0,0.00035616,10]
[402092330,1768516258700,-500.0,0.00035616,10]
[402092331,1768516258710,-4017.04,0.00035616,10]
[402092332,1768516258720,-500.0,0.00035616,10]
[402092333,1768516258730,-500.0,0.00035616,10]
[402092334,1768516258739,-500.0,0.00035616,10]
[402092335,1768516258748,-500.0,0.00035616,10]
[402092336,1768516258758,-500.0,0.00035616,10]
[402092337,1768516258767,-1005.01,0.00035616,10]
[402092338,1768516258777,-4636.45,0.00035616,10]
[402092339,1768516258786,-500.0,0.00035616,10]
[402092340,1768516258796,-1576.78,0.00035616,10]
[402092341,1768516258806,-517.85,0.00035616,10]
[402092342,1768516258816,-500.0,0.00035616,10]
[402092343,1768516258826,-556.66561714,0.00035616,10]
[402092344,1768516258836,-1797.28,0.00035616,10]
[402092345,1768516258845,-1580.48,0.00035616,10]
[402092346,1768516258855,-500.0,0.00035616,10]
[402092347,1768516258864,-383.87609685,0.00035616,10]
[402092348,1768516258873,-500.0,0.00035616,10]
[402092349,1768516258883,-500.0,0.00035616,10]
[402092350,1768516258892,-500.0,0.00035616,10]
[402092351,1768516258903,-500.0,0.00035616,10]
[402092352,1768516258912,-500.0,0.00035616,10]
[402092353,1768516258922,-500.0,0.00035616,10]
[402092354,1768516258931,-500.0,0.00035616,10]
[402092355,1768516258941,-410.61247741,0.00035616,10]
[402092356,1768516258951,-500.0,0.00035616,10]
[402092357,1768516258960,-500.0,0.00035616,10]
[402092358,1768516258969,-500.0,0.00035616,10]
[402092359,1768516258978,-500.0,0.00035616,10]
[402092360,1768516258988,-1000.0,0.00035616,10]
[402092361,1768516258997,-500.0,0.00035616,10]
[402092362,1768516259006,-1291.36,0.00035616,10]
[402092363,1768516259015,-1286.31,0.00035616,10]
[402092364,1768516259024,-1211.3,0.00035616,10]
[402092365,1768516259034,-500.0,0.00035616,10]
[402092366,1768516259043,-1235.76,0.00035616,10]
[402092367,1768516259052,-500.0,0.00035616,10]
[402092368,1768516259061,-1585.11,0.00035616,10]
[402092369,1768516259070,-602.53,0.00035616,10]
[402092370,1768516259079,-958.73,0.00035616,10]
[402092371,1768516259087,-1437.28,0.00035616,10]
[402092372,1768516259096,-500.0,0.00035616,10]
[402092373,1768516259105,-719.23,0.00035616,10]
[402092374,1768516259114,-1453.66,0.00035616,10]
[402092375,1768516259123,-500.0,0.00035616,10]
[402092376,1768516259132,-500.0,0.00035616,10]
[402092377,1768516259140,-500.0,0.00035616,10]
[402092378,1768516259149,-853.73,0.00035616,10]
[402092379,1768516259158,-500.0,0.00035616,10]
[402092380,1768516259167,-295.95730883,0.00035616,10]
[402092381,1768516259176,-500.0,0.00035616,10]
[402092382,1768516259184,-766.34,0.00035616,10]
[402092383,1768516259194,-500.0,0.00035616,10]
[402092384,1768516259202,-500.0,0.00035616,10]
[402092385,1768516259212,-832.64,0.00035616,10]
[402092386,1768516259221,-500.0,0.00035616,10]
[402092387,1768516259230,-1724.89,0.00035616,10]
[402092388,1768516259239,-1184.18,0.00035616,10]
[402092389,1768516259248,-1149.4,0.00035616,10]
[402092390,1768516259257,-600.0,0.00035616,2]
[402092391,1768516259266,-368.93860041,0.00035699,30]
[402092392,1768516259275,-467.6,0.00035713,7]
[402092393,1768516259284,-500.0,0.00035812,30]
[402092394,1768516259293,-368.93860041,0.00035836,30]
[402092395,1768516259302,-152.0,0.00035879,3]
[402092396,1768516259311,-153.07639503,0.00035887,14]
[402092397,1768516259325,-254.94880815,0.0003589,10]
[402092398,1768516259334,-516.00874307,0.0003589,10]
[402092399,1768516259343,-500.0,0.0003589,10]
[402092400,1768516259353,-500.0,0.0003589,10]
[402092401,1768516259363,-500.0,0.0003589,10]
[402092402,1768516259569,-501.90469144,0.0003589,10]
[402092403,1768516259579,-2881.42226169,0.0003589,10]
[402092404,1768516259589,-533.93,0.0003589,10]
[402092405,1768516259598,-500.0,0.0003589,10]
[402092406,1768516259608,-500.0,0.0003589,10]
[402092407,1768516259618,-829.03,0.0003589,10]
[402092408,1768516259627,-500.0,0.0003589,10]
[402092409,1768516259636,-803.08,0.0003589,10]
[402092410,1768516259645,-500.0,0.0003589,10]
[402092411,1768516259654,-574.56,0.0003589,10]
[402092412,1768516259662,-500.0,0.0003589,10]
[402092413,1768516259671,-1181.28,0.0003589,10]
[402092414,1768516259680,-500.0,0.0003589,10]
[402092415,1768516259689,-500.0,0.0003589,10]
[402092416,1768516259699,-504.2,0.0003589,10]
[402092417,1768516259708,-500.0,0.0003589,10]
[402092418,1768516259717,-500.0,0.0003589,10]
[402092419,1768516259727,-500.0,0.0003589,10]
[402092420,1768516259736,-500.0,0.0003589,10]
[402092421,1768516259745,-853.2,0.0003589,10]
[402092422,1768516259754,-500.0,0.0003589,10]
[402092423,1768516259765,-500.0,0.0003589,10]
[402092424,1768516259774,-500.0,0.0003589,10]
[402092425,1768516259783,-500.0,0.0003589,10]
[402092426,1768516259792,-500.0,0.0003589,10]
[402092427,1768516259802,-500.0,0.0003589,10]
[402092428,1768516259811,-1009.59,0.0003589,10]
[402092429,1768516259821,-500.0,0.0003589,10]
[402092430,1768516259830,-1136.4,0.0003589,10]
[402092431,1768516259839,-500.0,0.0003589,10]
[402092432,1768516259849,-500.0,0.0003589,10]
[402092433,1768516259859,-831.38,0.0003589,10]
[402092434,1768516259869,-500.0,0.0003589,10]
[402092435,1768516259880,-1506.84,0.0003589,10]
[402092436,1768516259889,-500.0,0.0003589,10]
[402092437,1768516259899,-613.76,0.0003589,10]
[402092438,1768516259909,-500.0,0.0003589,10]
[402092439,1768516259919,-500.0,0.0003589,10]
[402092440,1768516259929,-500.0,0.0003589,10]
[402092441,1768516259938,-500.0,0.0003589,10]
[402092442,1768516259947,-543.27,0.0003589,10]
[402092443,1768516259958,-588.06,0.0003589,10]
[402092444,1768516259968,-500.0,0.0003589,10]
[402092445,1768516259977,-436.37165214,0.0003589,10]
[402092446,1768516259987,-942.44,0.0003589,10]
[402092447,1768516259997,-1100.07,0.0003589,10]
[402092448,1768516260006,-580.22,0.0003589,10]
[402092449,1768516260017,-500.0,0.0003589,10]
[402092450,1768516260027,-534.84,0.0003589,10]
[402092451,1768516260036,-500.0,0.0003589,10]
[402092452,1768516260046,-500.0,0.0003589,10]
[402092453,1768516260055,-500.0,0.0003589,10]
[402092454,1768516260065,-500.0,0.0003589,10]
[402092455,1768516260076,-500.0,0.0003589,10]
[402092456,1768516260086,-500.0,0.0003589,10]
[402092457,1768516260096,-500.0,0.0003589,10]
[402092458,1768516260105,-823.78,0.0003589,10]
[402092459,1768516260115,-500.0,0.0003589,10]
[402092460,1768516260126,-500.0,0.0003589,10]
[402092461,1768516260135,-500.0,0.0003589,10]
[402092462,1768516260145,-500.0,0.0003589,10]
[402092463,1768516260155,-761.86,0.0003589,10]
[402092464,1768516260165,-500.0,0.0003589,10]
[402092465,1768516260175,-530.97688845,0.0003589,10]
[402092466,1768516260186,-500.0,0.0003589,10]
[402092467,1768516260197,-545.81,0.0003589,10]
[402092468,1768516260207,-500.0,0.0003589,10]
[402092469,1768516260217,-714.07,0.0003589,10]
[402092470,1768516260227,-538.99,0.0003589,10]
[402092471,1768516260236,-500.0,0.0003589,10]
[402092472,1768516260246,-679.02,0.0003589,10]
[402092473,1768516260255,-500.0,0.0003589,10]
[402092474,1768516260266,-500.0,0.0003589,10]
[402092475,1768516260278,-1257.27,0.0003589,10]
[402092476,1768516260287,-500.0,0.0003589,10]
[402092477,1768516260296,-987.42,0.0003589,10]
[402092478,1768516260307,-555.49384842,0.0003589,10]
[402092479,1768516260318,-500.0,0.0003589,10]
[402092480,1768516260333,-500.0,0.0003589,10]
[402092481,1768516260343,-500.0,0.0003589,10]
[402092482,1768516260352,-500.0,0.0003589,10]
[402092483,1768516260362,-500.0,0.0003589,10]
[402092484,1768516260374,-500.0,0.0003589,10]
[402092485,1768516260383,-500.0,0.0003589,10]
[402092486,1768516260395,-500.0,0.0003589,10]
[402092487,1768516260404,-500.0,0.0003589,10]
[402092488,1768516260414,-500.0,0.0003589,10]
[402092489,1768516260423,-582.11,0.0003589,10]
[402092490,1768516260434,-1973.9,0.0003589,10]
[402092491,1768516260443,-500.0,0.0003589,10]
[402092492,1768516260452,-500.0,0.0003589,10]
[402092493,1768516260461,-830.51,0.0003589,10]
[402092494,1768516260470,-500.0,0.0003589,10]
[402092495,1768516260479,-500.0,0.0003589,10]
[402092496,1768516260488,-500.0,0.0003589,10]
[402092497,1768516260497,-537.49,0.0003589,10]
[402092498,1768516260507,-503.12,0.0003589,10]
[402092499,1768516260516,-798.95,0.0003589,10]
[402092500,1768516260525,-1000.0,0.0003589,10]
[402092501,1768516260535,-500.0,0.0003589,10]
[402092502,1768516260545,-563.96,0.0003589,10]
[402092503,1768516260555,-778.51,0.0003589,10]
[402092504,1768516260564,-500.0,0.0003589,10]
[402092505,1768516260573,-543.84,0.0003589,10]
[402092506,1768516260581,-581.64558793,0.0003589,30]
[402092507,1768516260591,-500.0,0.0003589,10]
[402092508,1768516260600,-500.0,0.0003589,10]
[402092509,1768516260609,-695.47,0.0003589,10]
[402092510,1768516260619,-598.47,0.0003589,10]
[402092511,1768516260629,-500.0,0.0003589,10]
[402092512,1768516260638,-500.0,0.0003589,10]
[402092513,1768516260648,-500.0,0.0003589,10]
[402092514,1768516260657,-817.85,0.0003589,10]
[402092515,1768516260666,-500.0,0.0003589,10]
[402092516,1768516260675,-655.46,0.0003589,10]
[402092517,1768516260684,-735.7,0.0003589,10]
[402092518,1768516260694,-772.25,0.0003589,10]
[402092519,1768516260703,-500.0,0.0003589,10]
[402092520,1768516260712,-500.0,0.0003589,10]
[402092521,1768516260721,-500.0,0.0003589,10]
[402092522,1768516260730,-500.0,0.0003589,10]
[402092523,1768516260740,-1007.72,0.0003589,10]
[402092524,1768516260749,-500.0,0.0003589,10]
[402092525,1768516260759,-1415.05,0.0003589,10]
[402092526,1768516260768,-500.0,0.0003589,10]
[402092527,1768516260777,-500.0,0.0003589,10]
[402092528,1768516260786,-548.13,0.0003589,10]
[402092529,1768516260796,-500.0,0.0003589,10]
[402092530,1768516260806,-585.92,0.0003589,10]
[402092531,1768516260815,-500.0,0.0003589,10]
[402092532,1768516260824,-599.85948396,0.0003589,10]
[402092533,1768516260834,-500.0,0.0003589,10]
[402092534,1768516260843,-500.0,0.0003589,10]
[402092535,1768516260852,-1539.51,0.0003589,10]
[402092536,1768516260862,-1129.27,0.0003589,10]
[402092537,1768516260871,-957.96,0.0003589,10]
[402092538,1768516260880,-500.0,0.0003589,10]
[402092539,1768516260893,-695.88,0.0003589,10]
[402092540,1768516260914,-526.53,0.0003589,10]
[402092541,1768516260930,-500.0,0.0003589,10]
[402092542,1768516260950,-1000.0,0.0003589,2]
[402092543,1768516260968,-608.01,0.0003589,10]
[402092544,1768516260984,-500.0,0.0003589,10]
[402092545,1768516261001,-352.08902503,0.0003589,10]
[402092546,1768516261022,-500.0,0.0003589,10]
[402092547,1768516261041,-500.0,0.0003589,10]
[402092548,1768516261059,-500.0,0.0003589,10]
[402092549,1768516261077,-500.0,0.0003589,10]
[402092550,1768516261094,-500.0,0.0003589,10]
[402092551,1768516261107,-500.0,0.0003589,10]
[402092552,1768516261127,-500.0,0.0003589,10]
[402092553,1768516261140,-500.0,0.0003589,10]
[402092554,1768516261157,-500.0,0.0003589,10]
[402092555,1768516261170,-500.0,0.0003589,10]
[402092556,1768516261185,-500.0,0.0003589,10]
[402092557,1768516261200,-851.49,0.0003589,10]
[402092558,1768516261214,-212.57768674,0.0003589,10]
[402092559,1768516261230,-500.0,0.0003589,10]
[402092560,1768516261244,-962.67,0.0003589,10]
[402092561,1768516261259,-500.0,0.0003589,10]
[402092562,1768516261273,-500.0,0.0003589,10]
[402092563,1768516261288,-500.0,0.0003589,10]
[402092564,1768516261303,-500.0,0.0003589,10]
[402092565,1768516261318,-1377.27,0.0003589,10]
[402092566,1768516261336,-571.18,0.0003589,10]
[402092567,1768516261351,-500.0,0.0003589,10]
[402092568,1768516261368,-500.0,0.0003589,10]
[402092569,1768516261383,-500.0,0.0003589,10]
[402092570,1768516261400,-782.36,0.0003589,10]
[402092571,1768516261414,-500.0,0.0003589,10]
[402092572,1768516261430,-848.65,0.0003589,10]
[402092573,1768516261444,-815.84,0.0003589,10]
[402092574,1768516261458,-500.0,0.0003589,10]
[402092575,1768516261473,-1119.22,0.0003589,10]
[402092576,1768516261495,-500.0,0.0003589,10]
[402092577,1768516261510,-614.07,0.0003589,10]
[402092578,1768516261524,-582.89109144,0.0003589,10]
[402092579,1768516261538,-500.0,0.0003589,10]
[402092580,1768516261552,-500.0,0.0003589,10]
[402092581,1768516261568,-500.0,0.0003589,10]
[402092582,1768516261583,-573.4,0.0003589,10]
[402092583,1768516261599,-1116.91,0.0003589,10]
[402092584,1768516261613,-500.0,0.0003589,10]
[402092585,1768516261628,-500.0,0.0003589,10]
[402092586,1768516261643,-640.34,0.0003589,10]
[402092587,1768516261658,-500.0,0.0003589,10]
[402092588,1768516261674,-500.0,0.0003589,10]
[402092589,1768516261688,-891.58,0.0003589,10]